bitfinex/quotes_BTCUSD_20251212
["timestamp","ask_amount","ask_price","bid_price","bid_amount"]
[1765556086208,0.01109816,90105.0,90103.0,0.06334446]
[1765556086525,0.01109767,90109.0,90106.0,0.04501]
[1765556086679,0.22195587,90108.0,90106.0,0.04501]
[1765556086881,0.22195587,90108.0,90103.0,0.06334446]
[1765556086882,0.22196529,90105.0,90103.0,0.06334446]
[1765556087108,0.01109914,90097.0,90093.0,0.01109964]
[1765556087317,0.01109939,90095.0,90091.0,0.01109988]
[1765556087672,0.01109939,90095.0,90092.0,0.02893976]
[1765556087878,0.01192082,90097.0,90094.0,0.01109951]
[1765556088079,0.00082168,90097.0,90096.0,0.04501]
[1765556088285,0.00082168,90097.0,90095.0,0.03171791]
[1765556088641,0.043188,90093.0,90092.0,0.02893976]
[1765556088846,0.043188,90093.0,90082.0,0.07267]
[1765556088847,0.01192132,90093.0,90084.0,0.03294]
[1765556089048,0.01192132,90093.0,90085.0,0.01784]
[1765556089049,0.01110038,90087.0,90085.0,0.01784]
[1765556089251,0.00082168,90093.0,90091.0,0.22199775]
[1765556089447,0.0110984,90103.0,90096.0,0.01109927]
[1765556089646,0.22197558,90100.0,90096.0,0.01109927]
[1765556089847,0.01109865,90101.0,90096.0,0.01109927]
[1765556090068,0.01109902,90098.0,90097.0,0.07267]
[1765556090214,0.01109902,90098.0,90089.0,0.01110013]
[1765556090215,0.22200088,90090.0,90082.0,0.06799]
[1765556090418,0.01110025,90088.0,90084.0,0.04404075]
[1765556090841,0.01192169,90090.0,90086.0,0.0111005]
[1765556091042,0.00082168,90090.0,90087.0,0.23310703]
[1765556091247,0.00082168,90090.0,90089.0,0.26778268]
[1765556091658,0.23307989,90098.0,90094.0,0.01109951]
[1765556091904,0.01109927,90096.0,90092.0,0.01109976]
[1765556092109,0.01109927,90096.0,90092.0,0.06799]
[1765556092110,0.23308729,90095.0,90092.0,0.06799]
[1765556092714,0.01109939,90095.0,90092.0,0.07908976]
[1765556092919,0.05428727,90096.0,90093.0,0.01109964]
[1765556093163,0.01109927,90096.0,90093.0,0.01109964]
[1765556093339,0.01109914,90097.0,90094.0,0.01109951]
[1765556093737,0.23308561,90096.0,90092.0,0.09110736]
[1765556093954,0.01109939,90095.0,90085.0,0.01110062]
[1765556094161,0.043188,90085.0,90084.0,0.03294]
[1765556094366,0.22201113,90086.0,90084.0,0.03294]
[1765556094576,0.04400968,90085.0,90084.0,0.03294]
[1765556094759,0.043188,90082.0,90078.0,0.01110148]
[1765556094992,0.043188,90082.0,90081.0,0.06244321]
[1765556095218,0.22201993,90082.0,90081.0,0.01]
[1765556095435,1.26520793,90082.0,90081.0,0.01]
[1765556096085,1.31387793,90082.0,90081.0,0.01]
[1765556096291,0.22201993,90082.0,90081.0,0.01]
[1765556096496,0.01784,90082.0,90081.0,0.01]
[1765556096697,0.001,90082.0,90081.0,0.01]
[1765556096830,0.22301993,90082.0,90081.0,0.01]
[1765556097048,0.043188,90082.0,90081.0,0.01]
[1765556097257,0.044188,90082.0,90081.0,0.01]
[1765556097459,0.003,90082.0,90081.0,0.01]
[1765556097776,0.045188,90082.0,90081.0,0.01]
[1765556097931,0.046188,90082.0,90081.0,0.01]
[1765556098164,0.165848,90082.0,90081.0,0.01]
[1765556098540,1.454548,90082.0,90081.0,0.01]
[1765556098730,0.95278875,90082.0,90081.0,0.01]
[1765556098903,0.96395968,90082.0,90081.0,0.01]
[1765556099085,0.98304448,90082.0,90081.0,0.01]
[1765556099282,1.51024448,90082.0,90081.0,0.01]
[1765556099509,1.50824448,90082.0,90081.0,0.01]
[1765556099713,1.51124448,90082.0,90081.0,0.01]
[1765556100266,1.48194769,90082.0,90081.0,0.01]
[1765556100487,0.01110691,90034.0,90024.0,0.03294]
[1765556100695,0.04314694,90023.0,90022.0,0.22216791]
[1765556100897,0.26531238,90023.0,90022.0,0.00038844]
[1765556101103,1.38597238,90023.0,90022.0,0.00038844]
[1765556101489,1.38597238,90023.0,89960.0,0.00099999]
[1765556101490,1.69451238,90023.0,89960.0,0.00099999]
[1765556101694,1.69451238,90023.0,89994.0,0.00346041]
[1765556101695,0.01111148,89997.0,89994.0,0.00346041]
[1765556101902,0.04314694,89995.0,89994.0,0.00346041]
[1765556102109,0.01111,90009.0,90003.0,0.01111074]
[1765556102303,0.04314694,90004.0,90003.0,0.01111074]
[1765556102514,0.2907,90014.0,90003.0,0.01111074]
[1765556102683,0.02894938,90014.0,90006.0,0.01111037]
[1765556102888,0.23331777,90006.0,90003.0,0.00079117]
[1765556103088,0.04314694,89996.0,89994.0,0.01457226]
[1765556103289,0.01111123,89999.0,89994.0,0.00346041]
[1765556103290,0.22223456,89995.0,89994.0,0.00346041]
[1765556103487,0.3140515,89995.0,89994.0,0.00346041]
[1765556103665,0.6767415,89995.0,89994.0,0.00346041]
[1765556104136,0.6047515,89995.0,89994.0,0.00346041]
[1765556104342,0.51293456,89995.0,89994.0,0.00346041]
[1765556104547,0.04414694,89995.0,89994.0,0.00346041]
[1765556104751,0.04314694,89995.0,89994.0,0.00346041]
[1765556105163,0.16762862,89995.0,89994.0,0.00346041]
[1765556105367,1.47316862,89995.0,89994.0,0.00346041]
[1765556105805,1.47816862,89995.0,89994.0,0.00346041]
[1765556106012,0.83800862,89995.0,89994.0,0.00346041]
[1765556106453,1.47416862,89995.0,89994.0,0.00346041]
[1765556106623,1.47616862,89995.0,89994.0,0.00346041]
[1765556107085,1.47516862,89995.0,89994.0,0.00346041]
[1765556107209,1.47716862,89995.0,89994.0,0.00346041]
[1765556108221,1.47716862,89995.0,89994.0,0.01346041]
[1765556110458,0.47716862,89995.0,89994.0,0.01346041]
[1765556110666,1.47716862,89995.0,89994.0,0.01346041]
[1765556111076,0.98747862,89995.0,89994.0,0.01346041]
[1765556111276,1.05946862,89995.0,89994.0,0.01346041]
[1765556111609,0.92430862,89995.0,89994.0,0.01346041]
[1765556112039,0.87250862,89995.0,89994.0,0.01346041]
[1765556112673,0.74440862,89995.0,89994.0,0.01346041]
[1765556112835,0.67803862,89995.0,89994.0,0.01346041]
[1765556113009,0.004,89995.0,89994.0,0.01346041]
[1765556113230,0.04714694,89995.0,89994.0,0.01346041]
[1765556114726,0.004,89995.0,89994.0,0.01346041]
[1765556115260,0.04714694,89995.0,89994.0,0.01346041]
[1765556116110,0.16780694,89995.0,89994.0,0.01346041]
[1765556116657,0.02188,89995.0,89994.0,0.01346041]
[1765556116808,0.004,89995.0,89994.0,0.23648861]
[1765556117041,0.004,89995.0,89994.0,0.01425158]
[1765556117207,0.00482168,89995.0,89994.0,0.01346041]
[1765556117416,0.004,89995.0,89994.0,0.01346041]
[1765556118003,0.04714694,89995.0,89994.0,0.01346041]
[1765556118219,0.004,89995.0,89994.0,0.08695617]
[1765556118410,0.002,89995.0,89994.0,0.35061861]
[1765556118812,0.04314694,90007.0,90006.0,0.2222074]
[1765556119037,0.01110913,90016.0,90011.0,0.23330288]
[1765556119366,0.2907,90020.0,90013.0,0.22219012]
[1765556119367,0.01110888,90018.0,90013.0,0.22219012]
[1765556119584,0.03603,90024.0,90019.0,0.01110876]
[1765556119585,0.01110827,90023.0,90019.0,0.01110876]
[1765556119767,0.04314694,90026.0,90024.0,0.2221623]
[1765556120010,0.01110617,90040.0,90036.0,0.01110666]
[1765556120203,0.01110617,90040.0,90025.0,0.08091623]
[1765556120204,0.01110728,90031.0,90026.0,0.0111079]
[1765556120395,0.04314694,90026.0,90025.0,0.01189919]
[1765556120809,0.04314694,90025.0,90022.0,0.01110839]
[1765556121020,0.05425496,90025.0,90022.0,0.00011642]
[1765556121238,0.01110802,90025.0,90022.0,0.00011642]
[1765556121453,1.26953544,90023.0,90022.0,0.00011642]
[1765556121659,1.60338238,90023.0,90022.0,0.00011642]
[1765556121854,1.46532238,90023.0,90022.0,0.00011642]
[1765556122293,1.17262238,90023.0,90022.0,0.00011642]
[1765556122496,1.67572238,90023.0,90022.0,0.00011642]
[1765556122908,0.04314694,89995.0,89994.0,0.01334399]
[1765556123065,0.04314694,89995.0,89994.0,0.01346059]
[1765556123482,0.03711,90010.0,89998.0,0.01111135]
[1765556123856,0.04314694,90013.0,90010.0,0.01110987]
[1765556124028,0.22218952,90014.0,90010.0,0.00079117]
[1765556124410,0.04314694,90011.0,90010.0,0.00079117]
[1765556124959,0.0111095,90013.0,90010.0,0.01190104]
[1765556125113,0.04314694,90018.0,90013.0,0.0111095]
[1765556125439,0.002,90014.0,90013.0,0.0111095]
[1765556125590,0.002,90014.0,90011.0,0.01110975]
[1765556126000,0.002,90014.0,90010.0,0.00079117]
[1765556126001,0.04314694,90012.0,90010.0,0.00079117]
[1765556126204,0.01111111,90000.0,89984.0,0.22225983]
[1765556126418,0.002,90014.0,90012.0,0.03361]
[1765556126617,0.002,90014.0,90013.0,0.22219012]
[1765556126816,0.003,90014.0,90013.0,0.22298129]
[1765556127048,0.003,90014.0,90013.0,0.00079117]
[1765556127293,0.04314694,90009.0,90007.0,0.01111024]
[1765556127474,0.01110962,90012.0,90009.0,0.01111]
[1765556127681,0.001,90013.0,90011.0,0.22219506]
[1765556127863,0.00182168,90014.0,90011.0,0.23330481]
[1765556128090,0.002,90014.0,90013.0,0.23329931]
[1765556128221,0.002,90014.0,90013.0,0.0111095]
[1765556128435,0.01110777,90027.0,90024.0,0.01110814]
[1765556128654,0.30180753,90029.0,90024.0,0.01110814]
[1765556128858,0.01110814,90024.0,90018.0,0.01110888]
[1765556129056,0.05507676,90024.0,90017.0,0.01110901]
[1765556129265,0.05507676,90024.0,90021.0,0.01110851]
[1765556129266,0.00082168,90024.0,90021.0,0.01110851]
[1765556129686,0.22214796,90031.0,90021.0,0.01110851]
[1765556129687,0.2907,90037.0,90031.0,0.2221457]
[1765556129889,0.2907,90037.0,90034.0,0.23324521]
[1765556129890,0.02894823,90037.0,90034.0,0.23324521]
[1765556130130,0.02894823,90040.0,90037.0,0.01110654]
[1765556130303,0.04314694,90038.0,90037.0,0.01110654]
[1765556130511,0.02894823,90042.0,90041.0,0.22212103]
[1765556130717,0.02894823,90047.0,90044.0,0.23321931]
[1765556130951,0.02894823,90049.0,90046.0,0.23321412]
[1765556131172,0.02894823,90052.0,90051.0,0.22209636]
[1765556131486,0.02894823,90058.0,90057.0,0.22208157]
[1765556131691,0.02894823,90073.0,90068.0,0.0474]
[1765556131894,0.0585895,90083.0,90074.0,0.01110198]
[1765556131895,0.02894823,90077.0,90074.0,0.01110198]
[1765556132046,0.01110161,90077.0,90074.0,0.01110198]
[1765556132251,0.01110161,90077.0,90072.0,0.01110222]
[1765556132252,0.01110185,90075.0,90072.0,0.01110222]
[1765556132470,0.05545843,90077.0,90070.0,0.01110247]
[1765556132681,0.05545843,90077.0,90072.0,0.01110222]
[1765556132831,0.04435682,90077.0,90075.0,0.22203719]
[1765556133039,0.04314694,90075.0,90074.0,0.01110198]
[1765556133316,0.01231149,90077.0,90074.0,0.01110198]
[1765556133317,0.00220988,90077.0,90076.0,0.0474]
[1765556133452,0.0013882,90077.0,90076.0,0.1165]
[1765556133650,0.0013882,90077.0,90076.0,0.0474]
[1765556134066,0.0013882,90077.0,90076.0,0.19686782]
[1765556134452,0.0003882,90077.0,90076.0,0.19686782]
[1765556134647,0.0013882,90077.0,90076.0,0.19686782]
[1765556135261,0.0003882,90077.0,90076.0,0.19686782]
[1765556135464,0.0003882,90077.0,90076.0,0.24688621]
[1765556135683,0.0003882,90077.0,90076.0,0.24788621]
[1765556135947,0.0003882,90077.0,90076.0,0.53858621]
[1765556136131,0.0003882,90077.0,90076.0,0.53758621]
[1765556136544,0.0003882,90077.0,90076.0,0.58077421]
[1765556136724,0.0003882,90077.0,90076.0,0.58177421]
[1765556137135,0.0003882,90077.0,90076.0,0.58077421]
[1765556137336,0.0003882,90077.0,90076.0,0.58277421]
[1765556137689,0.0003882,90077.0,90076.0,0.57649682]
[1765556137825,0.0003882,90077.0,90076.0,0.61968482]
[1765556138611,0.0003882,90077.0,90076.0,0.57649682]
[1765556139428,0.0003882,90077.0,90076.0,0.55865682]
[1765556139801,0.0003882,90077.0,90076.0,0.21870782]
[1765556140647,0.0003882,90077.0,90076.0,0.20086782]
[1765556140858,0.12091988,90077.0,90076.0,0.002]
[1765556141078,0.01110346,90062.0,90030.0,0.4442925]
[1765556141293,0.01110346,90062.0,90020.0,1.14460218]
[1765556141294,0.22208772,90055.0,90050.0,0.01110494]
[1765556141495,0.00082168,90055.0,90054.0,0.01110444]
[1765556141707,0.00082168,90055.0,90052.0,0.01110469]
[1765556141850,0.04314694,90053.0,90052.0,0.01110469]
[1765556142289,0.04314694,90053.0,90049.0,0.23320533]
[1765556142517,0.01110469,90052.0,90049.0,0.05864533]
[1765556142743,0.01110333,90063.0,90058.0,0.01110395]
[1765556142996,0.22206924,90062.0,90057.0,0.01110407]
[1765556143236,0.00182168,90062.0,90059.0,0.01110383]
[1765556143458,0.00082168,90062.0,90059.0,0.01110383]
[1765556143927,0.00082168,90062.0,90059.0,0.23317936]
[1765556144122,0.00082168,90062.0,90059.0,0.2331791]
[1765556144356,0.00182168,90062.0,90059.0,0.26123599]
[1765556144598,0.00182168,90062.0,90059.0,0.03916072]
[1765556144830,0.00182168,90062.0,90059.0,0.23317936]
[1765556145282,0.001,90062.0,90061.0,0.09820956]
[1765556145475,0.01133848,90098.0,90076.0,0.22203472]
[1765556145677,0.01133848,90098.0,90076.0,0.38127228]
[1765556145917,0.01110013,90089.0,90076.0,0.40718428]
[1765556146133,0.01110038,90087.0,90076.0,0.40718428]
[1765556146355,0.05424682,90091.0,90076.0,0.40718428]
[1765556146568,0.01110013,90089.0,90076.0,0.38934428]
[1765556146823,0.01110136,90079.0,90076.0,0.11729117]
[1765556147034,0.01110136,90079.0,90076.0,0.03921062]
[1765556147241,0.01110148,90078.0,90074.0,0.01110198]
[1765556147475,0.23312717,90080.0,90074.0,0.01110198]
[1765556147476,0.01110124,90080.0,90074.0,0.01110198]
[1765556147723,0.26516416,90084.0,90076.0,0.001]
[1765556147920,0.01110136,90079.0,90076.0,0.001]
[1765556148347,0.01110136,90079.0,90074.0,0.01110198]
[1765556148348,0.01110148,90078.0,90074.0,0.02894198]
[1765556148549,0.01110136,90079.0,90074.0,0.02994198]
[1765556148787,0.01110099,90082.0,90075.0,0.22203719]
[1765556148998,0.01110136,90079.0,90076.0,0.07631223]
[1765556149214,0.22203035,90078.0,90076.0,0.07631223]
[1765556149420,0.01110136,90079.0,90074.0,0.001]
[1765556149593,0.01110148,90078.0,90074.0,0.01110198]
[1765556149791,0.04314694,90075.0,90074.0,0.01110198]
[1765556150243,0.05424953,90069.0,90064.0,0.0342]
[1765556150412,0.04314694,90065.0,90063.0,0.22206677]
[1765556150613,0.04314694,90065.0,90060.0,0.00952938]
[1765556150614,0.01192477,90065.0,90060.0,0.00952938]
[1765556150817,0.04396862,90065.0,90060.0,0.23317787]
[1765556151015,0.01110333,90063.0,90060.0,0.0111037]
[1765556151193,0.04396862,90065.0,90062.0,0.01110346]
[1765556151397,0.04396862,90065.0,90063.0,0.22206677]
[1765556151605,0.04396862,90065.0,90061.0,0.26737352]
[1765556151791,0.04396862,90065.0,90063.0,0.22206588]
[1765556152417,0.02894823,90097.0,90063.0,0.22206588]
[1765556152418,0.0111021,90073.0,90064.0,0.18020565]
[1765556152589,0.05424892,90074.0,90065.0,0.01110309]
[1765556152590,0.01110272,90068.0,90065.0,0.01110309]
[1765556152794,0.01110259,90069.0,90065.0,0.01110309]
[1765556153049,0.01110247,90070.0,90067.0,0.01110284]
[1765556153425,0.05424929,90071.0,90067.0,0.01110284]
[1765556153749,0.04314694,90071.0,90068.0,0.23315666]
[1765556153907,0.05424904,90073.0,90069.0,0.01110259]
[1765556154115,0.05507072,90073.0,90069.0,0.01110259]
[1765556154311,0.01110272,90068.0,90063.0,0.01110333]
[1765556154580,0.04314694,90064.0,90061.0,0.04530358]
[1765556154700,0.04314694,90064.0,90062.0,0.23990924]
[1765556155049,0.01110235,90071.0,90067.0,0.01110284]
[1765556155248,0.04314694,90068.0,90067.0,0.01110284]
[1765556155453,0.23314667,90073.0,90069.0,0.01110259]
[1765556155629,0.22204705,90071.0,90067.0,0.01110284]
[1765556155831,0.04314694,90069.0,90065.0,0.01110309]
[1765556156221,0.01110284,90067.0,90062.0,0.02894346]
[1765556156423,0.01110309,90065.0,90062.0,0.02894346]
[1765556156619,0.2220643,90064.0,90056.0,0.0111042]
[1765556156820,0.00082168,90064.0,90061.0,0.01110358]
[1765556157021,0.04314694,90062.0,90061.0,0.01110358]
[1765556157270,0.04396862,90064.0,90061.0,0.04530358]
[1765556157423,0.04396862,90064.0,90062.0,0.23206924]
[1765556157643,0.00082168,90064.0,90062.0,0.23206924]
[1765556157850,0.00182168,90064.0,90062.0,0.31044691]
[1765556158058,0.00182168,90064.0,90063.0,0.04878]
[1765556158261,0.001,90064.0,90063.0,0.12376117]
[1765556158447,0.001,90067.0,90066.0,0.22205937]
[1765556158648,0.0003882,90077.0,90076.0,0.22203472]
[1765556158944,0.0003882,90077.0,90076.0,0.27081472]
[1765556159303,0.0003882,90077.0,90076.0,0.34500472]
[1765556159905,0.0003882,90077.0,90074.0,0.23314118]
[1765556160225,0.0003882,90077.0,90068.0,0.01110272]
[1765556160226,0.01110185,90075.0,90068.0,0.01110272]
[1765556160424,0.04314694,90070.0,90066.0,0.01110296]
[1765556160861,0.01110222,90072.0,90064.0,0.02894321]
[1765556160862,0.04314694,90065.0,90064.0,0.01110321]
[1765556161010,0.0013882,90077.0,90074.0,0.01110198]
[1765556161219,0.0013882,90077.0,90076.0,0.27081472]
[1765556161451,0.0013882,90077.0,90076.0,0.34860867]
[1765556161645,0.0003882,90077.0,90076.0,0.42279867]
[1765556162011,0.0003882,90077.0,90076.0,0.42358984]
[1765556162012,0.0013882,90077.0,90076.0,0.42358984]
[1765556162216,0.0003882,90077.0,90076.0,0.42358984]
[1765556162622,0.0023882,90077.0,90076.0,0.07779395]
[1765556162826,0.04314694,90066.0,90065.0,0.01110309]
[1765556163026,0.00082168,90066.0,90064.0,0.2220643]
[1765556163239,0.22442118,90077.0,90075.0,0.22203658]
[1765556163240,0.0023882,90077.0,90075.0,0.22203658]
[1765556163409,0.0023882,90077.0,90076.0,0.09540872]
[1765556163613,0.0023882,90077.0,90076.0,0.17038989]
[1765556163848,0.0013882,90077.0,90076.0,0.00079117]
[1765556164615,0.0003882,90077.0,90076.0,0.04957117]
[1765556164977,0.0013882,90077.0,90076.0,0.12376117]
[1765556165742,0.0023882,90077.0,90076.0,0.12376117]
[1765556167382,0.01110173,90076.0,90072.0,0.01110222]
[1765556167587,0.0023882,90077.0,90076.0,0.04878]
[1765556167968,0.0023882,90077.0,90076.0,0.12297]
[1765556168139,0.0023882,90077.0,90076.0,0.34500472]
[1765556168725,0.0023882,90077.0,90074.0,0.23314159]
[1765556168726,0.0023882,90077.0,90074.0,0.01110198]
[1765556168954,0.0023882,90077.0,90075.0,0.25646246]
[1765556169631,0.04314694,90076.0,90075.0,0.25646238]
[1765556169984,0.00220988,90077.0,90073.0,0.25098209]
[1765556170201,0.05424966,90068.0,90065.0,0.01110309]
[1765556170411,0.05424966,90068.0,90062.0,0.01]
[1765556170412,0.25908677,90063.0,90062.0,0.01]
[1765556170647,0.30305539,90063.0,90062.0,0.01]
[1765556171460,0.38868307,90063.0,90062.0,0.01]
[1765556171658,1.74037001,90063.0,90062.0,0.01]
[1765556171876,1.76381761,90063.0,90062.0,0.01]
[1765556172019,0.2907,90059.0,90035.0,0.01110679]
[1765556172392,0.01110642,90038.0,90035.0,0.01110679]
[1765556172535,0.01110629,90039.0,90035.0,0.01110679]
[1765556172780,0.04314694,90038.0,90037.0,0.01110654]
[1765556172975,0.01110605,90041.0,90038.0,0.01110642]
[1765556173172,0.05425299,90041.0,90038.0,0.01110642]
[1765556173376,0.23324291,90035.0,90032.0,0.03347]
[1765556173575,0.01110666,90036.0,90032.0,0.04469376]
[1765556173774,0.23324394,90035.0,90032.0,0.0335866]
[1765556174276,0.01110679,90035.0,90032.0,0.0335866]
[1765556174685,0.2221383,90034.0,90032.0,0.0001166]
[1765556174951,0.38148694,90033.0,90032.0,0.0001166]
[1765556175130,1.47594704,90033.0,90032.0,0.0001166]
[1765556175495,1.47594704,90033.0,89994.0,0.01445584]
[1765556175496,0.01111086,90002.0,89996.0,0.0289516]
[1765556175698,0.01111074,90003.0,89998.0,0.01111135]
[1765556175904,0.04314694,90006.0,90002.0,0.01111086]
[1765556176107,0.01111061,90004.0,90001.0,0.01111098]
[1765556176517,0.01111061,90004.0,89996.0,0.01784]
[1765556176518,0.22222716,89998.0,89996.0,0.01784]
[1765556176719,0.04314694,89997.0,89996.0,0.01784]
[1765556176960,0.04314694,89997.0,89996.0,0.0111116]
[1765556177083,0.01111123,89999.0,89996.0,0.0111116]
[1765556177283,0.01111123,89999.0,89995.0,0.01111172]
[1765556177744,0.01111111,90000.0,89996.0,0.0111116]
[1765556177943,0.001,89997.0,89996.0,0.0111116]
[1765556178146,0.04314694,89995.0,89994.0,0.01445584]
[1765556178321,0.04314694,89995.0,89994.0,0.00334399]
[1765556178930,0.22223243,89996.0,89994.0,0.00334399]
[1765556179136,0.04314694,89995.0,89994.0,0.00334399]
[1765556179337,0.01111135,89998.0,89994.0,0.00334399]
[1765556179568,0.01111148,89997.0,89994.0,0.00334399]
[1765556179712,0.09061694,89995.0,89994.0,0.00334399]
[1765556179917,0.04314694,89995.0,89994.0,0.00334399]
[1765556180384,0.04314694,89996.0,89995.0,0.01111172]
[1765556180703,0.04314694,89995.0,89994.0,0.01445584]
[1765556180933,0.30181012,90008.0,90004.0,0.01111061]
[1765556181145,0.04314694,90003.0,90002.0,0.01111086]
[1765556181567,0.04314694,90002.0,90000.0,0.01111111]
[1765556181762,0.04314694,90002.0,89999.0,0.2333336]
[1765556183007,0.04314694,90002.0,89999.0,0.01111123]
[1765556183206,0.23333073,90001.0,89996.0,0.0111116]
[1765556183405,0.04314694,90002.0,89999.0,0.22222469]
[1765556183609,0.01111098,90001.0,89997.0,0.01111148]
[1765556183814,0.01111135,89998.0,89994.0,0.00334399]
[1765556184017,0.2653815,89995.0,89994.0,0.00334399]
[1765556185468,0.22223456,89995.0,89994.0,0.00334399]
[1765556185654,0.38349318,89995.0,89994.0,0.00334399]
[1765556185888,0.38549318,89995.0,89994.0,0.00334399]
[1765556186243,0.002,89995.0,89994.0,0.00334399]
[1765556186533,0.002,89995.0,89994.0,0.12724399]
[1765556187139,0.002,89995.0,89994.0,0.14587516]
[1765556187341,0.002,89995.0,89994.0,0.36811219]
[1765556187922,0.002,89995.0,89994.0,0.29348219]
[1765556188286,0.002,89995.0,89994.0,0.36811219]
[1765556189493,0.002,89995.0,89994.0,0.07124516]
[1765556189837,0.04514694,89995.0,89994.0,0.02197516]
[1765556190049,0.002,89995.0,89994.0,0.14587516]
[1765556190272,0.002,89995.0,89994.0,0.23391014]
[1765556190484,0.002,89995.0,89994.0,0.14587516]
[1765556190696,0.002,89995.0,89994.0,0.12803516]
[1765556190958,0.001,89995.0,89994.0,0.05340516]
[1765556191200,0.01111111,90000.0,89995.0,0.01111172]
[1765556191439,0.01111086,90002.0,89998.0,0.01111135]
[1765556191647,0.01111061,90004.0,90000.0,0.01111111]
[1765556191855,0.04314694,90001.0,90000.0,0.01111111]
[1765556192279,0.22222222,90000.0,89999.0,0.03375]
[1765556192498,0.04314694,89995.0,89994.0,0.00513516]
[1765556192710,0.12798862,89995.0,89994.0,0.00434399]
[1765556192961,0.19732862,89995.0,89994.0,0.00434399]
[1765556193413,1.50586862,89995.0,89994.0,0.00434399]
[1765556193631,1.50586862,89995.0,89994.0,0.00334399]
[1765556194062,1.46272168,89995.0,89994.0,0.00334399]
[1765556194232,1.48802862,89995.0,89994.0,0.00334399]
[1765556194434,1.50586862,89995.0,89994.0,0.00334399]
[1765556194632,1.50986862,89995.0,89994.0,0.00334399]
[1765556194865,1.51386862,89995.0,89994.0,0.00334399]
[1765556195102,0.60404138,89991.0,89990.0,3.99e-06]
[1765556195352,1.67420306,89991.0,89990.0,3.99e-06]
[1765556196286,1.69757882,89991.0,89990.0,3.99e-06]
[1765556197158,1.72707355,89991.0,89990.0,3.99e-06]
[1765556197360,1.73107355,89991.0,89990.0,3.99e-06]
[1765556197779,1.73107355,89991.0,89953.0,0.01111691]
[1765556197780,0.04795,89971.0,89933.0,0.03375]
[1765556197991,0.04718716,89951.0,89943.0,0.01111815]
[1765556198195,0.04314694,89946.0,89945.0,0.0111179]
[1765556198396,0.04314694,89950.0,89949.0,0.01111741]
[1765556198642,0.04314694,89949.0,89947.0,0.01111765]
[1765556198846,0.04314694,89949.0,89945.0,0.01190907]
[1765556199005,0.01111753,89948.0,89945.0,0.00079117]
[1765556199265,0.01111839,89941.0,89937.0,0.01111889]
[1765556199493,0.22236549,89943.0,89934.0,0.01111926]
[1765556199494,0.01111889,89937.0,89934.0,0.01111926]
[1765556199689,0.04314694,89935.0,89934.0,0.01111926]
[1765556199938,0.01111889,89937.0,89934.0,0.01111926]
[1765556200110,0.01111877,89938.0,89934.0,0.01111926]
[1765556200111,0.04314694,89935.0,89934.0,0.01111926]
[1765556200333,0.04314694,89935.0,89933.0,0.00011658]
[1765556200334,1.0,89934.0,89933.0,0.00011658]
[1765556200532,1.16043694,89934.0,89933.0,0.00011658]
[1765556200782,1.45113694,89934.0,89933.0,0.00011658]
[1765556201503,1.45113694,89934.0,89930.0,0.0002]
[1765556201504,0.2907,89931.0,89930.0,0.0002]
[1765556201710,1.13901134,89931.0,89930.0,0.00058914]
[1765556201910,1.20835134,89931.0,89930.0,0.00058914]
[1765556202444,1.69776127,89931.0,89930.0,0.00058914]
[1765556203278,1.71560127,89931.0,89930.0,0.00058914]
[1765556203692,1.69219134,89931.0,89930.0,0.00058914]
[1765556203894,1.69419134,89931.0,89930.0,0.00058914]
[1765556204307,1.69219134,89931.0,89930.0,0.00058914]
[1765556204521,1.69419134,89931.0,89930.0,0.00058914]
[1765556204705,1.69519134,89931.0,89930.0,0.00058914]
[1765556205467,1.71855144,89931.0,89930.0,0.00058914]
[1765556207347,0.26561387,89901.0,89900.0,0.0002]
[1765556207555,0.33182387,89901.0,89900.0,0.00031662]
[1765556207764,0.09109694,89901.0,89900.0,0.00313824]
[1765556207994,0.01112272,89906.0,89901.0,0.01112334]
[1765556208210,0.04314694,89914.0,89907.0,0.22245044]
[1765556208442,0.04314694,89914.0,89907.0,0.0111226]
[1765556208443,0.01112223,89910.0,89907.0,0.0111226]
[1765556208638,0.01112223,89910.0,89907.0,0.00079117]
[1765556208941,0.01112223,89910.0,89907.0,0.07542117]
[1765556209343,0.01112223,89910.0,89909.0,0.04927]
[1765556209927,0.23356689,89910.0,89907.0,0.00079117]
[1765556210178,0.23356689,89910.0,89900.0,0.00031662]
[1765556210179,0.04314694,89903.0,89900.0,0.00031662]
[1765556210387,0.01112309,89903.0,89900.0,0.00031662]
[1765556210607,0.04314694,89901.0,89900.0,0.00031662]
[1765556211531,0.26561387,89901.0,89900.0,0.00031662]
[1765556211774,0.23358668,89903.0,89900.0,0.00031662]
[1765556211979,0.04314694,89901.0,89900.0,0.00031662]
[1765556212312,0.22246693,89901.0,89900.0,0.00031662]
[1765556212530,1.63490693,89901.0,89900.0,0.00031662]
[1765556212777,1.67805387,89901.0,89900.0,0.00031662]
[1765556212965,1.55631387,89901.0,89900.0,0.00031662]
[1765556213190,0.51316693,89901.0,89900.0,0.00031662]
[1765556213396,0.55631387,89901.0,89900.0,0.00031662]
[1765556213600,0.22246693,89901.0,89900.0,0.00031662]
[1765556213802,0.26561387,89901.0,89900.0,0.00031662]
[1765556214162,0.22246693,89901.0,89900.0,0.00031662]
[1765556214366,0.26561387,89901.0,89900.0,0.00031662]
[1765556214775,0.85998659,89910.0,89900.0,0.00031662]
[1765556214776,0.05426892,89912.0,89904.0,0.01112297]
[1765556215111,0.04314694,89912.0,89911.0,0.03412]
[1765556215316,0.04314694,89906.0,89905.0,0.03412]
[1765556215462,0.05427003,89903.0,89900.0,0.00031662]
[1765556215676,0.04314694,89901.0,89900.0,0.00031662]
[1765556216467,0.04314694,89904.0,89903.0,0.01112309]
[1765556217115,0.04314694,89909.0,89907.0,0.0111226]
[1765556217321,0.04314694,89909.0,89906.0,0.01112272]
[1765556217525,0.001,89912.0,89909.0,0.01112235]
[1765556217698,0.01112235,89909.0,89906.0,0.00079117]
[1765556217901,0.04314694,89907.0,89906.0,0.00079117]
[1765556218539,0.001,89909.0,89906.0,0.05884389]
[1765556218875,0.23457029,89909.0,89906.0,0.11628117]
[1765556219078,0.04314694,89902.0,89900.0,0.22278521]
[1765556219235,0.04314694,89904.0,89900.0,0.22278521]
[1765556219640,0.04314694,89904.0,89902.0,0.22246446]
[1765556219851,0.05426991,89904.0,89903.0,0.00273148]
[1765556220261,0.98540991,89904.0,89903.0,0.00273148]
[1765556220461,0.001,89907.0,89904.0,0.01112297]
[1765556220673,0.04314694,89917.0,89914.0,0.01112173]
[1765556220996,0.23354421,89919.0,89904.0,0.00079117]
[1765556220997,0.04314694,89916.0,89912.0,0.01112198]
[1765556221173,0.01112136,89917.0,89914.0,0.00079117]
[1765556221555,0.01112124,89918.0,89902.0,0.01112322]
[1765556221556,0.0111226,89907.0,89902.0,0.01112322]
[1765556221757,0.04314694,89909.0,89908.0,0.01112248]
[1765556221958,0.05426892,89912.0,89908.0,0.01112248]